fUSD/lending_fUSD_20260614
["ID","MTS","AMOUNT","RATE_DAILY","PERIOD"]
[425024246,1781436640000,-500.0,0.00027397,2]
[425024249,1781436640000,-500.0,0.00027397,2]
[425024251,1781436640000,-408.38,0.00027397,2]
[425024252,1781436640000,-500.0,0.00027397,2]
[425024253,1781436640000,-500.0,0.00027397,2]
[425024196,1781436640000,-500.0,0.00027397,2]
[425024242,1781436640000,-500.0,0.00027397,2]
[425024226,1781436640000,-500.0,0.00027397,2]
[425024255,1781436640000,-161.38,0.00027397,2]
[425024219,1781436640000,-615.21,0.00027397,2]
[425024199,1781436640000,-500.0,0.00027397,2]
[425024198,1781436640000,-500.0,0.00027397,2]
[425024201,1781436640000,-500.0,0.00027397,2]
[425024200,1781436640000,-500.0,0.00027397,2]
[425024204,1781436640000,-500.0,0.00027397,2]
[425024203,1781436640000,-500.0,0.00027397,2]
[425024205,1781436640000,-354.7,0.00027397,2]
[425024225,1781436640000,-310.78,0.00027397,2]
[425024208,1781436640000,-322.89,0.00027397,2]
[425024209,1781436640000,-500.0,0.00027397,2]
[425024213,1781436640000,-591.01,0.00027397,2]
[425024214,1781436640000,-601.59,0.00027397,2]
[425024215,1781436640000,-351.46,0.00027397,2]
[425024206,1781436640000,-500.0,0.00027397,2]
[425024212,1781436640000,-500.0,0.00027397,2]
[425024224,1781436640000,-500.0,0.00027397,2]
[425024211,1781436640000,-460.01,0.00027397,2]
[425024227,1781436640000,-409.03,0.00027397,2]
[425024222,1781436640000,-2165.99,0.00027397,2]
[425024254,1781436640000,-338.92,0.00027397,2]
[425024221,1781436640000,-500.0,0.00027397,2]
[425024223,1781436640000,-339.46,0.00027397,2]
[425024218,1781436640000,-500.0,0.00027397,2]
[425024217,1781436640000,-500.0,0.00027397,2]
[425024216,1781436640000,-500.0,0.00027397,2]
[425024207,1781436640000,-368.34040415,0.00027397,2]
[425024210,1781436640000,-500.0,0.00027397,2]
[425024220,1781436640000,-500.0,0.00027397,2]
[425024294,1781436641000,-500.0,0.00027397,2]
[425024298,1781436641000,-500.0,0.00027397,2]
[425024297,1781436641000,-612.88,0.00027397,2]
[425024295,1781436641000,-500.0,0.00027397,2]
[425024290,1781436641000,-500.0,0.00027397,2]
[425024288,1781436641000,-492.97,0.00027397,2]
[425024296,1781436641000,-500.0,0.00027397,2]
[425024293,1781436641000,-500.0,0.00027397,2]
[425024291,1781436641000,-500.0,0.00027397,2]
[425024289,1781436641000,-500.0,0.00027397,2]
[425024292,1781436641000,-500.0,0.00027397,2]
[425024299,1781436641000,-500.0,0.00027397,2]
[425024312,1781436641000,-500.0,0.00027397,2]
[425024302,1781436641000,-237.19,0.00027397,2]
[425024306,1781436641000,-317.66,0.00027397,2]
[425024303,1781436641000,-500.0,0.00027397,2]
[425024305,1781436641000,-500.0,0.00027397,2]
[425024308,1781436641000,-500.0,0.00027397,2]
[425024301,1781436641000,-500.0,0.00027397,2]
[425024304,1781436641000,-473.6,0.00027397,2]
[425024307,1781436641000,-500.0,0.00027397,2]
[425024311,1781436641000,-500.0,0.00027397,2]
[425024309,1781436641000,-500.0,0.00027397,2]
[425024310,1781436641000,-500.0,0.00027397,2]
[425024287,1781436641000,-222.31,0.00027397,2]
[425024300,1781436641000,-500.0,0.00027397,2]
[425024281,1781436641000,-250.29,0.00027397,2]
[425024272,1781436641000,-500.0,0.00027397,2]
[425024285,1781436641000,-499.04,0.00027397,2]
[425024313,1781436641000,-500.0,0.00027397,2]
[425024261,1781436641000,-371.78,0.00027397,2]
[425024259,1781436641000,-270.21,0.00027397,2]
[425024257,1781436641000,-500.0,0.00027397,2]
[425024258,1781436641000,-500.0,0.00027397,2]
[425024256,1781436641000,-500.0,0.00027397,2]
[425024262,1781436641000,-500.0,0.00027397,2]
[425024263,1781436641000,-314.65,0.00027397,2]
[425024265,1781436641000,-500.0,0.00027397,2]
[425024266,1781436641000,-560.26,0.00027397,2]
[425024274,1781436641000,-500.0,0.00027397,2]
[425024268,1781436641000,-500.0,0.00027397,2]
[425024270,1781436641000,-500.0,0.00027397,2]
[425024269,1781436641000,-295.96,0.00027397,2]
[425024271,1781436641000,-500.0,0.00027397,2]
[425024273,1781436641000,-500.0,0.00027397,2]
[425024275,1781436641000,-500.0,0.00027397,2]
[425024276,1781436641000,-315.3,0.00027397,2]
[425024277,1781436641000,-345.71,0.00027397,2]
[425024278,1781436641000,-500.0,0.00027397,2]
[425024280,1781436641000,-500.0,0.00027397,2]
[425024282,1781436641000,-320.0,0.00027397,2]
[425024286,1781436641000,-500.0,0.00027397,2]
[425024283,1781436641000,-500.0,0.00027397,2]
[425024284,1781436641000,-434.49,0.00027397,2]
[425024279,1781436641000,-500.0,0.00027397,2]
[425024314,1781436641000,-500.0,0.00027397,2]
[425024260,1781436641000,-500.0,0.00027397,2]
[425024319,1781436641000,-383.05,0.00027397,2]
[425024347,1781436641000,-500.0,0.00027397,2]
[425024349,1781436641000,-500.0,0.00027397,2]
[425024348,1781436641000,-500.0,0.00027397,2]
[425024350,1781436641000,-159.7,0.00027397,2]
[425024351,1781436641000,-500.0,0.00027397,2]
[425024352,1781436641000,-288.07,0.00027397,2]
[425024355,1781436641000,-500.0,0.00027397,2]
[425024354,1781436641000,-500.0,0.00027397,2]
[425024353,1781436641000,-500.0,0.00027397,2]
[425024357,1781436641000,-500.0,0.00027397,2]
[425024356,1781436641000,-500.0,0.00027397,2]
[425024359,1781436641000,-561.11,0.00027397,2]
[425024358,1781436641000,-300.0,0.00027397,2]
[425024361,1781436641000,-500.0,0.00027397,2]
[425024360,1781436641000,-195.51,0.00027397,2]
[425024364,1781436641000,-500.0,0.00027397,2]
[425024363,1781436641000,-500.0,0.00027397,2]
[425024362,1781436641000,-500.0,0.00027397,2]
[425024367,1781436641000,-500.0,0.00027397,2]
[425024365,1781436641000,-203.26,0.00027397,2]
[425024366,1781436641000,-1000.0,0.00027397,2]
[425024369,1781436641000,-500.0,0.00027397,2]
[425024368,1781436641000,-173.61,0.00027397,2]
[425024370,1781436641000,-500.0,0.00027397,2]
[425024371,1781436641000,-500.0,0.00027397,15]
[425024345,1781436641000,-240.84,0.00027397,2]
[425024346,1781436641000,-274.03,0.00027397,2]
[425024372,1781436641000,-369.29,0.00027397,2]
[425024341,1781436641000,-362.58,0.00027397,2]
[425024343,1781436641000,-500.0,0.00027397,2]
[425024317,1781436641000,-230.92,0.00027397,2]
[425024320,1781436641000,-500.0,0.00027397,2]
[425024316,1781436641000,-500.0,0.00027397,2]
[425024318,1781436641000,-500.0,0.00027397,2]
[425024321,1781436641000,-500.0,0.00027397,2]
[425024322,1781436641000,-500.0,0.00027397,2]
[425024326,1781436641000,-500.0,0.00027397,2]
[425024323,1781436641000,-500.0,0.00027397,2]
[425024325,1781436641000,-500.0,0.00027397,2]
[425024327,1781436641000,-500.0,0.00027397,2]
[425024324,1781436641000,-500.0,0.00027397,2]
[425024328,1781436641000,-500.0,0.00027397,2]
[425024315,1781436641000,-500.0,0.00027397,2]
[425024332,1781436641000,-500.0,0.00027397,2]
[425024329,1781436641000,-508.96,0.00027397,2]
[425024344,1781436641000,-500.0,0.00027397,2]
[425024342,1781436641000,-500.0,0.00027397,2]
[425024340,1781436641000,-500.0,0.00027397,2]
[425024339,1781436641000,-212.69,0.00027397,2]
[425024337,1781436641000,-500.0,0.00027397,2]
[425024338,1781436641000,-500.0,0.00027397,2]
[425024336,1781436641000,-500.0,0.00027397,2]
[425024334,1781436641000,-383.55,0.00027397,2]
[425024333,1781436641000,-206.89,0.00027397,2]
[425024330,1781436641000,-223.45,0.00027397,2]
[425024331,1781436641000,-616.71,0.00027397,2]
[425024335,1781436641000,-648.07,0.00027397,2]
[425024416,1781436642000,-281.1,0.00027397,2]
[425024412,1781436642000,-500.0,0.00027397,2]
[425024410,1781436642000,-504.12,0.00027397,2]
[425024409,1781436642000,-500.0,0.00027397,2]
[425024401,1781436642000,-528.97,0.00027397,2]
[425024407,1781436642000,-500.0,0.00027397,2]
[425024406,1781436642000,-195.05,0.00027397,2]
[425024405,1781436642000,-572.21,0.00027397,2]
[425024399,1781436642000,-500.0,0.00027397,2]
[425024408,1781436642000,-500.0,0.00027397,2]
[425024411,1781436642000,-500.0,0.00027397,2]
[425024418,1781436642000,-441.91089698,0.00027397,2]
[425024414,1781436642000,-500.0,0.00027397,2]
[425024415,1781436642000,-500.0,0.00027397,2]
[425024417,1781436642000,-500.0,0.00027397,2]
[425024419,1781436642000,-500.0,0.00027397,2]
[425024402,1781436642000,-500.0,0.00027397,2]
[425024420,1781436642000,-500.0,0.00027397,2]
[425024421,1781436642000,-500.0,0.00027397,2]
[425024422,1781436642000,-507.92,0.00027397,2]
[425024423,1781436642000,-500.0,0.00027397,2]
[425024424,1781436642000,-463.02,0.00027397,2]
[425024425,1781436642000,-500.0,0.00027397,2]
[425024427,1781436642000,-455.0,0.00027397,2]
[425024413,1781436642000,-500.0,0.00027397,2]
[425024400,1781436642000,-638.72,0.00027397,2]
[425024394,1781436642000,-2000.0,0.00027397,2]
[425024398,1781436642000,-500.0,0.00027397,2]
[425024426,1781436642000,-500.0,0.00027397,2]
[425024373,1781436642000,-500.0,0.00027397,2]
[425024374,1781436642000,-545.55,0.00027397,2]
[425024380,1781436642000,-367.36,0.00027397,2]
[425024375,1781436642000,-500.0,0.00027397,2]
[425024381,1781436642000,-612.89,0.00027397,2]
[425024379,1781436642000,-500.0,0.00027397,2]
[425024377,1781436642000,-500.0,0.00027397,2]
[425024376,1781436642000,-500.0,0.00027397,2]
[425024378,1781436642000,-561.75,0.00027397,2]
[425024382,1781436642000,-337.03,0.00027397,2]
[425024383,1781436642000,-500.0,0.00027397,2]
[425024384,1781436642000,-500.0,0.00027397,2]
[425024387,1781436642000,-191.55,0.00027397,2]
[425024386,1781436642000,-500.0,0.00027397,2]
[425024391,1781436642000,-408.38,0.00027397,2]
[425024390,1781436642000,-392.62,0.00027397,2]
[425024385,1781436642000,-500.0,0.00027397,2]
[425024389,1781436642000,-304.14,0.00027397,2]
[425024388,1781436642000,-500.0,0.00027397,2]
[425024393,1781436642000,-174.46,0.00027397,2]
[425024395,1781436642000,-253.7,0.00027397,2]
[425024396,1781436642000,-460.98,0.00027397,2]
[425024403,1781436642000,-384.1,0.00027397,2]
[425024404,1781436642000,-190.07,0.00027397,2]
[425024397,1781436642000,-500.0,0.00027397,2]
[425024392,1781436642000,-500.0,0.00027397,2]
[425024428,1781436642000,-500.0,0.00027397,2]
[425024429,1781436642000,-500.0,0.00027397,2]
[425024463,1781436642000,-500.0,0.00027397,2]
[425024465,1781436642000,-500.0,0.00027397,2]
[425024466,1781436642000,-223.52,0.00027397,2]
[425024469,1781436642000,-500.0,0.00027397,2]
[425024468,1781436642000,-500.0,0.00027397,2]
[425024470,1781436642000,-500.0,0.00027397,2]
[425024471,1781436642000,-500.0,0.00027397,2]
[425024474,1781436642000,-216.06106235,0.00027397,10]
[425024472,1781436642000,-1500.0,0.00027397,2]
[425024477,1781436642000,-300.0,0.00027397,2]
[425024482,1781436642000,-8057.02,0.00027397,10]
[425024480,1781436642000,-9668.42,0.00027397,10]
[425024492,1781436642000,-372.98,0.0002755,2]
[425024488,1781436642000,-459.49077073,0.00027418,2]
[425024495,1781436642000,-2524.03,0.0002755,30]
[425024491,1781436642000,-2735.0,0.0002755,30]
[425024496,1781436642000,-1405.18,0.0002755,30]
[425024493,1781436642000,-1523.58,0.0002755,30]
[425024484,1781436642000,-152.24669598,0.00027397,7]
[425024494,1781436642000,-2161.25,0.0002755,30]
[425024486,1781436642000,-1869.97,0.000274,2]
[425024490,1781436642000,-500.0,0.000275,7]
[425024499,1781436642000,-2214.02,0.0002755,30]
[425024497,1781436642000,-370.13,0.0002755,2]
[425024430,1781436642000,-500.0,0.00027397,2]
[425024459,1781436642000,-334.16,0.00027397,2]
[425024458,1781436642000,-209.14640293,0.00027397,2]
[425024467,1781436642000,-308.74,0.00027397,2]
[425024456,1781436642000,-243.15,0.00027397,2]
[425024431,1781436642000,-500.0,0.00027397,2]
[425024433,1781436642000,-500.0,0.00027397,2]
[425024437,1781436642000,-500.0,0.00027397,2]
[425024435,1781436642000,-500.0,0.00027397,2]
[425024432,1781436642000,-500.0,0.00027397,2]
[425024436,1781436642000,-536.67947697,0.00027397,2]
[425024434,1781436642000,-500.0,0.00027397,2]
[425024438,1781436642000,-500.0,0.00027397,2]
[425024440,1781436642000,-500.0,0.00027397,2]
[425024462,1781436642000,-531.13,0.00027397,2]
[425024439,1781436642000,-529.1,0.00027397,2]
[425024443,1781436642000,-500.0,0.00027397,2]
[425024444,1781436642000,-500.0,0.00027397,2]
[425024441,1781436642000,-500.0,0.00027397,2]
[425024447,1781436642000,-500.0,0.00027397,2]
[425024455,1781436642000,-500.0,0.00027397,2]
[425024442,1781436642000,-500.0,0.00027397,2]
[425024453,1781436642000,-500.0,0.00027397,2]
[425024457,1781436642000,-500.0,0.00027397,2]
[425024452,1781436642000,-500.0,0.00027397,2]
[425024454,1781436642000,-500.0,0.00027397,2]
[425024448,1781436642000,-500.0,0.00027397,2]
[425024450,1781436642000,-500.0,0.00027397,2]
[425024449,1781436642000,-187.87,0.00027397,2]
[425024446,1781436642000,-500.0,0.00027397,2]
[425024445,1781436642000,-500.0,0.00027397,2]
[425024451,1781436642000,-500.0,0.00027397,2]
[425024510,1781436643000,-459.49077073,0.00027636,2]
[425024512,1781436643000,-372.98,0.00027641,2]
[425024501,1781436643000,-199.29976469,0.00027562,2]
[425024502,1781436643000,-372.98,0.0002758,7]
[425024505,1781436643000,-370.13,0.0002758,7]
[425024506,1781436643000,-150.0,0.000276,2]
[425024508,1781436643000,-372.98,0.00027611,30]
[425024507,1781436643000,-200.0,0.000276,10]
[425024509,1781436643000,-370.13,0.00027611,30]
[425024513,1781436643000,-370.13,0.00027641,2]
[425024524,1781436643000,-2100.0,0.0002767,8]
[425024514,1781436643000,-2100.0,0.0002767,8]
[425024515,1781436643000,-2100.0,0.0002767,8]
[425024525,1781436643000,-544.68542527,0.0002767,8]
[425024523,1781436643000,-2100.0,0.0002767,8]
[425024522,1781436643000,-2100.0,0.0002767,8]
[425024521,1781436643000,-2100.0,0.0002767,8]
[425024519,1781436643000,-2100.0,0.0002767,8]
[425024517,1781436643000,-2100.0,0.0002767,8]
[425024518,1781436643000,-2100.0,0.0002767,8]
[425024516,1781436643000,-2100.0,0.0002767,8]
[425024520,1781436643000,-2100.0,0.0002767,8]
[425024553,1781436644000,-500.0,0.0002767,8]
[425024551,1781436644000,-500.0,0.0002767,8]
[425024547,1781436644000,-500.0,0.0002767,8]
[425024546,1781436644000,-500.0,0.0002767,8]
[425024548,1781436644000,-500.0,0.0002767,8]
[425024550,1781436644000,-500.0,0.0002767,8]
[425024552,1781436644000,-500.0,0.0002767,8]
[425024558,1781436644000,-500.0,0.0002767,8]
[425024554,1781436644000,-500.0,0.0002767,8]
[425024557,1781436644000,-500.0,0.0002767,8]
[425024556,1781436644000,-500.0,0.0002767,8]
[425024549,1781436644000,-500.0,0.0002767,8]
[425024563,1781436644000,-500.0,0.0002767,8]
[425024564,1781436644000,-500.0,0.0002767,8]
[425024561,1781436644000,-500.0,0.0002767,8]
[425024555,1781436644000,-500.0,0.0002767,8]
[425024545,1781436644000,-500.0,0.0002767,8]
[425024541,1781436644000,-500.0,0.0002767,8]
[425024542,1781436644000,-500.0,0.0002767,8]
[425024560,1781436644000,-500.0,0.0002767,8]
[425024528,1781436644000,-674.0,0.00026575,10]
[425024529,1781436644000,-6714.18,0.00027397,10]
[425024531,1781436644000,-2100.0,0.0002767,8]
[425024530,1781436644000,-1555.31457473,0.0002767,8]
[425024532,1781436644000,-2100.0,0.0002767,8]
[425024535,1781436644000,-500.0,0.0002767,8]
[425024538,1781436644000,-500.0,0.0002767,8]
[425024534,1781436644000,-256.0904738,0.0002767,8]
[425024533,1781436644000,-550.56896933,0.0002767,8]
[425024536,1781436644000,-500.0,0.0002767,8]
[425024537,1781436644000,-500.0,0.0002767,8]
[425024539,1781436644000,-500.0,0.0002767,8]
[425024540,1781436644000,-500.0,0.0002767,8]
[425024543,1781436644000,-500.0,0.0002767,8]
[425024544,1781436644000,-500.0,0.0002767,8]
[425024559,1781436644000,-500.0,0.0002767,8]
[425024591,1781436644000,-500.0,0.0002767,8]
[425024565,1781436644000,-500.0,0.0002767,8]
[425024586,1781436644000,-2100.0,0.0002767,8]
[425024587,1781436644000,-500.0,0.0002767,8]
[425024584,1781436644000,-500.0,0.0002767,8]
[425024588,1781436644000,-2100.0,0.0002767,8]
[425024589,1781436644000,-2100.0,0.0002767,8]
[425024590,1781436644000,-2100.0,0.0002767,8]
[425024600,1781436644000,-500.0,0.0002767,8]
[425024592,1781436644000,-2100.0,0.0002767,8]
[425024595,1781436644000,-2100.0,0.0002767,8]
[425024593,1781436644000,-500.0,0.0002767,8]
[425024599,1781436644000,-500.0,0.0002767,8]
[425024597,1781436644000,-500.0,0.0002767,8]
[425024598,1781436644000,-2100.0,0.0002767,8]
[425024596,1781436644000,-500.0,0.0002767,8]
[425024562,1781436644000,-500.0,0.0002767,8]
[425024585,1781436644000,-2100.0,0.0002767,8]
[425024583,1781436644000,-2100.0,0.0002767,8]
[425024594,1781436644000,-2100.0,0.0002767,8]
[425024581,1781436644000,-2100.0,0.0002767,8]
[425024582,1781436644000,-500.0,0.0002767,8]
[425024566,1781436644000,-500.0,0.0002767,8]
[425024568,1781436644000,-500.0,0.0002767,2]
[425024567,1781436644000,-502.95691985,0.0002767,8]
[425024573,1781436644000,-2100.0,0.0002767,8]
[425024570,1781436644000,-2100.0,0.0002767,8]
[425024574,1781436644000,-2100.0,0.0002767,8]
[425024569,1781436644000,-2100.0,0.0002767,8]
[425024572,1781436644000,-2100.0,0.0002767,8]
[425024571,1781436644000,-2100.0,0.0002767,8]
[425024576,1781436644000,-2100.0,0.0002767,8]
[425024577,1781436644000,-2100.0,0.0002767,8]
[425024578,1781436644000,-2100.0,0.0002767,8]
[425024579,1781436644000,-2100.0,0.0002767,8]
[425024575,1781436644000,-2100.0,0.0002767,8]
[425024580,1781436644000,-500.0,0.0002767,8]
[425024644,1781436645000,-2100.0,0.0002767,8]
[425024646,1781436645000,-2100.0,0.0002767,8]
[425024643,1781436645000,-2100.0,0.0002767,8]
[425024639,1781436645000,-2100.0,0.0002767,8]
[425024638,1781436645000,-2100.0,0.0002767,8]
[425024636,1781436645000,-2100.0,0.0002767,8]
[425024635,1781436645000,-2100.0,0.0002767,8]
[425024634,1781436645000,-2100.0,0.0002767,8]
[425024633,1781436645000,-2100.0,0.0002767,8]
[425024641,1781436645000,-2100.0,0.0002767,8]
[425024631,1781436645000,-2100.0,0.0002767,8]
[425024637,1781436645000,-2100.0,0.0002767,8]
[425024642,1781436645000,-2100.0,0.0002767,8]
[425024649,1781436645000,-2100.0,0.0002767,8]
[425024645,1781436645000,-2100.0,0.0002767,8]
[425024647,1781436645000,-2100.0,0.0002767,8]
[425024650,1781436645000,-2100.0,0.0002767,8]
[425024653,1781436645000,-2100.0,0.0002767,8]
[425024652,1781436645000,-2100.0,0.0002767,8]
[425024660,1781436645000,-2100.0,0.0002767,8]
[425024651,1781436645000,-2100.0,0.0002767,8]
[425024654,1781436645000,-2100.0,0.0002767,8]
[425024657,1781436645000,-2100.0,0.0002767,8]
[425024658,1781436645000,-2100.0,0.0002767,8]
[425024656,1781436645000,-2100.0,0.0002767,8]
[425024628,1781436645000,-500.0,0.0002767,8]
[425024640,1781436645000,-2100.0,0.0002767,8]
[425024630,1781436645000,-567.62173674,0.0002767,8]
[425024612,1781436645000,-2100.0,0.0002767,8]
[425024629,1781436645000,-2100.0,0.0002767,8]
[425024601,1781436645000,-2100.0,0.0002767,8]
[425024603,1781436645000,-2100.0,0.0002767,8]
[425024602,1781436645000,-500.0,0.0002767,8]
[425024606,1781436645000,-2100.0,0.0002767,8]
[425024604,1781436645000,-500.0,0.0002767,8]
[425024605,1781436645000,-500.0,0.0002767,8]
[425024609,1781436645000,-500.0,0.0002767,8]
[425024611,1781436645000,-500.0,0.0002767,8]
[425024607,1781436645000,-500.0,0.0002767,8]
[425024610,1781436645000,-2100.0,0.0002767,8]
[425024608,1781436645000,-2100.0,0.0002767,8]
[425024655,1781436645000,-2100.0,0.0002767,8]
[425024613,1781436645000,-500.0,0.0002767,8]
[425024615,1781436645000,-500.0,0.0002767,8]
[425024614,1781436645000,-2100.0,0.0002767,8]
[425024619,1781436645000,-2100.0,0.0002767,8]
[425024616,1781436645000,-2100.0,0.0002767,8]
[425024621,1781436645000,-2100.0,0.0002767,8]
[425024617,1781436645000,-500.0,0.0002767,8]
[425024618,1781436645000,-500.0,0.0002767,8]
[425024620,1781436645000,-500.0,0.0002767,8]
[425024622,1781436645000,-500.0,0.0002767,8]
[425024624,1781436645000,-500.0,0.0002767,8]
[425024623,1781436645000,-2100.0,0.0002767,8]
[425024625,1781436645000,-2100.0,0.0002767,8]
[425024627,1781436645000,-2100.0,0.0002767,8]
[425024626,1781436645000,-500.0,0.0002767,8]
[425024632,1781436645000,-2100.0,0.0002767,8]
[425024659,1781436645000,-2100.0,0.0002767,8]
[425024648,1781436645000,-2100.0,0.0002767,8]
[425024663,1781436645000,-2100.0,0.0002767,8]
[425024695,1781436645000,-500.0,0.00027671,8]
[425024699,1781436645000,-500.0,0.00027671,8]
[425024698,1781436645000,-475.92,0.00027671,8]
[425024696,1781436645000,-500.0,0.00027671,8]
[425024688,1781436645000,-500.0,0.00027671,8]
[425024697,1781436645000,-500.0,0.00027671,8]
[425024700,1781436645000,-500.0,0.00027671,8]
[425024710,1781436645000,-500.0,0.00027671,8]
[425024709,1781436645000,-500.0,0.00027671,8]
[425024703,1781436645000,-500.0,0.00027671,8]
[425024702,1781436645000,-500.0,0.00027671,8]
[425024707,1781436645000,-276.73,0.00027671,2]
[425024705,1781436645000,-500.0,0.00027671,8]
[425024701,1781436645000,-500.0,0.00027671,8]
[425024706,1781436645000,-589.95,0.00027671,8]
[425024704,1781436645000,-500.0,0.00027671,8]
[425024708,1781436645000,-296.66,0.00027671,8]
[425024711,1781436645000,-515.17250695,0.00027671,8]
[425024714,1781436645000,-500.0,0.00027671,8]
[425024713,1781436645000,-500.0,0.00027671,8]
[425024717,1781436645000,-500.0,0.00027671,8]
[425024720,1781436645000,-500.0,0.00027671,8]
[425024715,1781436645000,-601.59755206,0.00027671,8]
[425024712,1781436645000,-500.0,0.00027671,8]
[425024716,1781436645000,-476.98,0.00027671,8]
[425024718,1781436645000,-500.0,0.00027671,8]
[425024661,1781436645000,-2100.0,0.0002767,8]
[425024694,1781436645000,-500.0,0.00027671,8]
[425024691,1781436645000,-500.0,0.00027671,8]
[425024719,1781436645000,-267.91,0.00027671,8]
[425024693,1781436645000,-500.0,0.00027671,8]
[425024690,1781436645000,-508.58,0.00027671,8]
[425024673,1781436645000,-2100.0,0.0002767,8]
[425024664,1781436645000,-2100.0,0.0002767,8]
[425024666,1781436645000,-2100.0,0.0002767,8]
[425024665,1781436645000,-2100.0,0.0002767,8]
[425024668,1781436645000,-2100.0,0.0002767,8]
[425024667,1781436645000,-2100.0,0.0002767,8]
[425024669,1781436645000,-2100.0,0.0002767,8]
[425024670,1781436645000,-2100.0,0.0002767,8]
[425024671,1781436645000,-2100.0,0.0002767,8]
[425024672,1781436645000,-2100.0,0.0002767,8]
[425024674,1781436645000,-2100.0,0.0002767,8]
[425024676,1781436645000,-1000.0,0.00027671,8]
[425024662,1781436645000,-2100.0,0.0002767,8]
[425024679,1781436645000,-500.0,0.00027671,8]
[425024675,1781436645000,-2100.0,0.0002767,8]
[425024689,1781436645000,-500.0,0.00027671,8]
[425024687,1781436645000,-500.0,0.00027671,8]
[425024686,1781436645000,-2165.99,0.00027671,8]
[425024678,1781436645000,-500.0,0.00027671,8]
[425024683,1781436645000,-500.0,0.00027671,8]
[425024692,1781436645000,-500.0,0.00027671,8]
[425024682,1781436645000,-500.0,0.00027671,8]
[425024684,1781436645000,-442.18,0.00027671,8]
[425024680,1781436645000,-500.0,0.00027671,8]
[425024677,1781436645000,-500.0,0.00027671,8]
[425024681,1781436645000,-500.0,0.00027671,8]
[425024685,1781436645000,-500.0,0.00027671,8]
[425024767,1781436646000,-2735.0,0.00027711,7]
[425024766,1781436646000,-370.13,0.00027702,30]
[425024758,1781436646000,-500.0,0.00027671,8]
[425024761,1781436646000,-500.0,0.00027699,2]
[425024757,1781436646000,-500.0,0.00027671,8]
[425024759,1781436646000,-372.98,0.00027672,7]
[425024754,1781436646000,-419.27,0.00027671,8]
[425024755,1781436646000,-563.27,0.00027671,8]
[425024756,1781436646000,-500.0,0.00027671,8]
[425024753,1781436646000,-631.77,0.00027671,8]
[425024760,1781436646000,-370.13,0.00027672,7]
[425024764,1781436646000,-372.98,0.00027702,30]
[425024771,1781436646000,-1405.18,0.00027711,7]
[425024768,1781436646000,-1523.58,0.00027711,7]
[425024762,1781436646000,-150.0,0.000277,30]
[425024765,1781436646000,-3000.0,0.00027702,3]
[425024770,1781436646000,-2524.03,0.00027711,7]
[425024780,1781436646000,-216.06106235,0.000278,7]
[425024769,1781436646000,-2161.25,0.00027711,7]